bitfinex/quotes_SOLUSD_20251124
["timestamp","ask_amount","ask_price","bid_price","bid_amount"]
[1764000501227,12.4393589,132.57,132.47,0.67]
[1764000501531,0.92,132.59,132.56,12.4393589]
[1764000501926,0.72,132.58,132.55,12.4393589]
[1764000502660,0.2,132.59,132.57,12.4393589]
[1764000503042,0.87,132.59,132.57,12.4393589]
[1764000503869,0.2,132.59,132.57,12.4393589]
[1764000504043,0.2,132.59,132.58,12.4393589]
[1764000504359,0.2,132.59,132.57,15.8393589]
[1764000504573,0.2,132.59,132.57,11.30454642]
[1764000505636,0.2,132.59,132.58,7.90454642]
[1764000507253,0.87,132.59,132.57,3.4]
[1764000507457,0.87,132.59,132.57,3.54216157]
[1764000507953,0.2,132.59,132.58,8.04670799]
[1764000508260,0.2,132.59,132.58,40.26453257]
[1764000509558,0.2,132.59,132.58,32.35998615]
[1764000509726,0.2,132.59,132.58,39.57453257]
[1764000510458,0.2,132.59,132.58,5.43013289]
[1764000510633,0.2,132.59,132.58,27.213507]
[1764000510953,0.2,132.59,132.58,21.92553568]
[1764000511757,0.2,132.59,132.58,3.4]
[1764000511961,0.2,132.59,132.55,7.90454642]
[1764000511962,0.87,132.59,132.55,7.90454642]
[1764000512158,8.57454642,132.58,132.53,7.90454642]
[1764000512333,8.57454642,132.58,132.53,11.30454642]
[1764000512666,0.67,132.57,132.54,7.90454642]
[1764000513155,0.67,132.57,132.53,11.30454642]
[1764000513361,0.67,132.57,132.54,0.14216157]
[1764000513544,0.67,132.57,132.53,7.90454642]
[1764000513742,7.90454642,132.54,132.49,7.90454642]
[1764000514051,0.2,132.59,132.51,7.90454642]
[1764000514234,0.2,132.59,132.56,7.90454642]
[1764000514441,0.2,132.59,132.54,16.308864]
[1764000514639,0.2,132.59,132.56,0.14216157]
[1764000514836,0.87,132.59,132.56,0.14216157]
[1764000515579,0.2,132.59,132.58,0.14216157]
[1764000515874,0.2,132.59,132.58,3.54216157]
[1764000517186,0.2,132.59,132.58,11.44670799]
[1764000517488,0.2,132.59,132.58,29.46815145]
[1764000520156,0.2,132.72,132.62,26.23985326]
[1764000520157,0.67,132.7,132.62,26.23985326]
[1764000520469,0.67,132.71,132.68,0.14216157]
[1764000520657,0.67,132.71,132.69,3.4]
[1764000521264,7.90454642,132.7,132.63,16.308864]
[1764000521467,7.90454642,132.69,132.64,13.33098926]
[1764000521849,7.90454642,132.71,132.66,0.14216157]
[1764000522048,0.67,132.69,132.66,7.90454642]
[1764000522245,0.67,132.69,132.67,3.4]
[1764000523180,0.2,132.72,132.67,3.4]
[1764000523181,0.67,132.7,132.67,3.4]
[1764000523380,0.67,132.7,132.67,11.30454642]
[1764000523754,7.90454642,132.69,132.66,16.308864]
[1764000524066,8.57454642,132.7,132.67,3.4]
[1764000524269,0.67,132.69,132.67,3.4]
[1764000524471,0.67,132.69,132.65,0.14216157]
[1764000524779,8.57454642,132.69,132.67,3.4]
[1764000525080,0.67,132.69,132.67,3.4]
[1764000525288,0.67,132.68,132.67,3.4]
[1764000525457,0.67,132.68,132.66,3.4]
[1764000525658,0.67,132.71,132.67,8.04670799]
[1764000525965,0.67,132.71,132.68,7.90454642]
[1764000526273,0.2,132.72,132.7,8.04670799]
[1764000526450,0.87,132.72,132.67,26.23985326]
[1764000526654,0.87,132.72,132.68,21.23553568]
[1764000527380,0.86,132.72,132.68,21.23553568]
[1764000527958,0.2,132.72,132.68,21.23553568]
[1764000528175,0.66,132.71,132.68,21.23553568]
[1764000528687,0.2,132.72,132.69,11.30454642]
[1764000528981,0.2,132.72,132.69,3.4]
[1764000528982,0.86,132.72,132.69,3.4]
[1764000529452,0.86,132.72,132.7,3.4]
[1764000530172,0.66,132.71,132.64,16.978864]
[1764000530483,7.90454642,132.69,132.66,0.14216157]
[1764000530683,7.90454642,132.69,132.65,13.18882769]
[1764000530868,0.66,132.69,132.66,0.14216157]
[1764000531767,0.66,132.69,132.67,3.4]
[1764000533689,0.88,132.72,132.67,3.4]
[1764000533853,8.58454642,132.71,132.66,7.90454642]
[1764000534059,8.58454642,132.71,132.67,3.54216157]
[1764000534474,8.58454642,132.7,132.66,3.4]
[1764000534679,8.58454642,132.7,132.66,3.54216157]
[1764000534885,8.58454642,132.69,132.66,3.54216157]
[1764000535184,0.68,132.69,132.66,3.54216157]
[1764000535385,0.68,132.68,132.66,3.54216157]
[1764000535957,0.68,132.68,132.66,0.14216157]
[1764000536158,0.68,132.68,132.64,7.90454642]
[1764000536358,0.68,132.68,132.65,19.708864]
[1764000536783,0.2,132.72,132.66,0.14216157]
[1764000536964,8.58454642,132.7,132.66,0.14216157]
[1764000537369,0.68,132.69,132.66,0.14216157]
[1764000538398,0.88,132.72,132.68,8.04670799]
[1764000538591,0.88,132.72,132.69,3.4]
[1764000538773,0.68,132.71,132.69,3.4]
[1764000540969,7.90454642,132.7,132.64,9.78882769]
[1764000541174,7.90454642,132.68,132.65,3.4]
[1764000541477,7.90454642,132.69,132.65,3.4]
[1764000541987,0.68,132.68,132.65,3.4]
[1764000542293,0.88,132.72,132.67,7.90454642]
[1764000542583,0.88,132.72,132.68,3.4]
[1764000542886,0.68,132.71,132.68,3.4]
[1764000544384,0.6,132.72,132.69,0.14216157]
[1764000545468,0.6,132.72,132.69,0.80216157]
[1764000545682,0.2,132.72,132.69,0.14216157]
[1764000546465,0.2,132.72,132.69,0.80216157]
[1764000546887,0.2,132.72,132.69,0.14216157]
[1764000547593,0.2,132.72,132.69,0.80216157]
[1764000547794,0.2,132.72,132.69,0.14216157]
[1764000548169,0.2,132.72,132.58,100.0]
[1764000548170,7.90454642,132.7,132.58,100.0]
[1764000548374,7.90454642,132.68,132.62,17.69337411]
[1764000548571,7.90454642,132.68,132.64,9.78882769]
[1764000548875,8.58454642,132.68,132.64,9.78882769]
[1764000549085,7.90454642,132.65,132.59,7.90454642]
[1764000549288,7.90454642,132.63,132.58,8.56454642]
[1764000549476,7.90454642,132.63,132.6,9.78882769]
[1764000549780,7.90454642,132.65,132.61,3.54216157]
[1764000549982,8.58454642,132.64,132.62,16.308864]
[1764000550174,8.58454642,132.64,132.59,18.35337411]
[1764000550380,8.58454642,132.63,132.6,3.4]
[1764000550882,8.58454642,132.65,132.6,11.96454642]
[1764000551195,7.90454642,132.64,132.6,3.4]
[1764000551371,8.58454642,132.64,132.61,0.14216157]
[1764000551997,7.90454642,132.65,132.61,0.14216157]
[1764000552196,8.64670799,132.72,132.61,0.14216157]
[1764000552197,8.58454642,132.67,132.61,8.70670799]
[1764000552400,7.90454642,132.67,132.63,0.14216157]
[1764000552599,8.58454642,132.7,132.65,0.14216157]
[1764000552778,7.90454642,132.69,132.65,0.14216157]
[1764000553111,0.68,132.68,132.65,0.14216157]
[1764000553996,8.58454642,132.71,132.67,0.14216157]
[1764000554203,7.90454642,132.7,132.67,3.54216157]
[1764000554370,7.90454642,132.69,132.64,17.83553568]
[1764000554576,7.90454642,132.68,132.65,3.4]
[1764000554790,7.90454642,132.67,132.63,0.80216157]
[1764000555100,8.58454642,132.67,132.65,3.4]
[1764000555296,0.68,132.67,132.63,18.35337411]
[1764000555472,0.2,132.72,132.66,8.04670799]
[1764000555674,0.2,132.72,132.68,0.14216157]
[1764000555675,0.88,132.72,132.68,0.14216157]
[1764000555890,7.90454642,132.69,132.64,0.14216157]
[1764000556104,7.90454642,132.67,132.64,3.54216157]
[1764000556480,7.90454642,132.68,132.64,4.20216157]
[1764000556798,7.90454642,132.68,132.64,3.54216157]
[1764000557010,0.68,132.68,132.64,3.54216157]
[1764000557196,0.68,132.68,132.64,11.44670799]
[1764000557571,0.68,132.68,132.65,3.4]
[1764000557976,8.58454642,132.71,132.66,10.59098926]
[1764000558201,7.90454642,132.69,132.67,3.4]
[1764000558614,0.2,132.72,132.68,0.80216157]
[1764000558789,0.88,132.72,132.7,0.14216157]
[1764000559099,0.2,132.72,132.7,3.54216157]
[1764000559303,0.88,132.72,132.7,3.54216157]
[1764000559994,0.2,132.72,132.7,3.54216157]
[1764000560194,0.2,132.72,132.71,8.04670799]
[1764000560499,0.2,132.72,132.71,0.14216157]
[1764000560677,0.2,132.72,132.71,17.83553568]
[1764000560878,0.2,132.72,132.71,18.49553568]
[1764000564319,0.2,132.72,132.71,17.83553568]
[1764000564479,0.2,132.72,132.71,9.93098926]
[1764000564678,0.2,132.72,132.71,18.54553568]
[1764000565211,0.2,132.72,132.71,26.08076286]
[1764000565415,0.2,132.72,132.71,42.38962686]
[1764000565715,1e-08,132.72,132.71,83.98530928]
[1764000566006,0.1,132.79,132.78,26.09769169]
[1764000566208,0.1,132.79,132.78,37.54439968]
[1764000566386,0.1,132.79,132.78,45.78565438]
[1764000566580,0.1,132.79,132.78,37.88110796]
[1764000566776,0.1,132.79,132.78,50.22041117]
[1764000567208,0.1,132.79,132.78,39.28915647]
[1764000567414,0.1,132.79,132.78,42.68915647]
[1764000567605,0.1,132.79,132.78,50.22041117]
[1764000568126,0.2,132.83,132.81,26.09769169]
[1764000568323,0.2,132.86,132.84,33.76770631]
[1764000568480,0.2,132.86,132.84,61.84631273]
[1764000568680,0.2,132.86,132.85,22.68029247]
[1764000568880,0.7,132.93,132.89,9.93098926]
[1764000569116,0.8,132.95,132.92,12.33930321]
[1764000569316,0.8,132.95,132.93,3.4]
[1764000569317,0.7,132.94,132.93,3.4]
[1764000569523,0.7,132.94,132.93,13.33098926]
[1764000569713,0.1,132.95,132.94,9.93098926]
[1764000570029,2.09587209,132.97,132.96,26.23985326]
[1764000570332,2.09587209,132.97,132.96,49.50021543]
[1764000570511,2.09587209,132.97,132.96,49.61021543]
[1764000571211,2.09587209,132.97,132.96,33.87091222]
[1764000571527,2.09587209,132.97,132.96,49.61021543]
[1764000571704,2.09587209,132.97,132.96,37.27091222]
[1764000571899,2.09587209,132.97,132.96,49.61021543]
[1764000572324,2.09587209,132.97,132.96,46.21021543]
[1764000572529,2.09587209,132.97,132.96,49.61021543]
[1764000575431,2.09587209,132.97,132.96,41.8369949]
[1764000575817,2.09587209,132.97,132.94,12.33930321]
[1764000575818,2.79587209,132.97,132.94,12.33930321]
[1764000576137,0.7,132.96,132.95,3.4]
[1764000576430,0.7,132.96,132.91,12.33930321]
[1764000576739,0.7,132.96,132.93,9.78882769]
[1764000576933,0.7,132.96,132.94,3.4]
[1764000577325,0.7,132.96,132.95,3.4]
[1764000577835,0.7,132.96,132.93,9.78882769]
[1764000578006,0.7,132.96,132.94,3.4]
[1764000578203,0.7,132.96,132.93,9.78882769]
[1764000578421,0.7,132.96,132.94,3.4]
[1764000579545,0.7,132.96,132.94,15.73930321]
[1764000579742,0.7,132.96,132.94,3.4]
[1764000580241,0.7,132.96,132.94,15.73930321]
[1764000580624,2.09587209,132.97,132.95,38.57915647]
[1764000580930,2.09587209,132.97,132.96,22.27029247]
[1764000581126,2.09587209,132.97,132.96,25.67029247]
[1764000582020,2.09587209,132.97,132.96,9.93098926]
[1764000582236,2.09587209,132.97,132.96,25.67029247]
[1764000582933,2.09587209,132.97,132.96,33.19135143]
[1764000583118,2.09587209,132.97,132.96,33.30135143]
[1764000583325,2.09587209,132.97,132.96,33.19135143]
[1764000583520,2.09587209,132.97,132.96,13.33098926]
[1764000583726,2.09587209,132.97,132.96,33.30135143]
[1764000583933,2.09587209,132.97,132.96,84.05345732]
[1764000584135,1.98587209,132.97,132.96,80.54345732]
[1764000584327,1.98587209,132.97,132.96,33.04918986]
[1764000585161,1.98587209,132.97,132.96,25.5081309]
[1764000586834,2.68587209,132.97,132.95,12.33930321]
[1764000587030,1.98587209,132.97,132.96,3.38]
[1764000587433,2.69587209,132.97,132.95,9.78882769]
[1764000587627,2.69587209,132.97,132.96,3.52216157]
[1764000587835,0.71,132.96,132.95,16.45102557]
[1764000588030,0.71,132.96,132.95,16.308864]
[1764000588330,0.71,132.96,132.95,19.688864]
[1764000588532,0.71,132.96,132.95,19.83102557]
[1764000588735,0.71,132.96,132.93,9.78882769]
[1764000588922,0.71,132.96,132.94,3.38]
[1764000589244,1.98587209,132.97,132.95,0.14216157]
[1764000589443,13.04930321,132.96,132.94,3.38]
[1764000589634,12.33930321,132.95,132.91,9.78882769]
[1764000589844,12.33930321,132.94,132.92,3.38]
[1764000590037,12.33930321,132.93,132.91,3.38]
[1764000590252,13.04930321,132.93,132.88,12.33930321]
[1764000590447,13.04930321,132.92,132.89,3.38]
[1764000590745,0.71,132.92,132.89,3.38]
[1764000591042,0.71,132.91,132.89,15.71930321]
[1764000591228,0.71,132.91,132.89,3.38]
[1764000592734,0.72,132.93,132.9,12.48146478]
[1764000592934,0.72,132.92,132.9,12.48146478]
[1764000593336,0.72,132.92,132.9,0.14216157]
[1764000593632,0.72,132.92,132.86,26.09769169]
[1764000593832,12.33930321,132.9,132.87,3.38]
[1764000594050,0.72,132.89,132.87,3.38]
[1764000594554,12.33930321,132.88,132.86,3.38]
[1764000594855,13.05930321,132.89,132.86,3.38]
[1764000595060,0.72,132.88,132.86,3.38]
[1764000596677,180.708864,132.94,132.87,0.14216157]
[1764000596678,0.72,132.9,132.87,0.14216157]
[1764000597455,13.05930321,132.9,132.87,0.14216157]
[1764000597645,13.05930321,132.9,132.86,3.38]
[1764000597959,0.72,132.89,132.86,3.38]
[1764000598869,12.33930321,132.9,132.87,0.14216157]
[1764000599051,0.72,132.89,132.87,0.14216157]
[1764000599536,0.72,132.91,132.87,12.48146478]
[1764000599732,16.708864,132.96,132.88,12.33930321]
[1764000599733,13.05930321,132.93,132.88,12.33930321]
[1764000600053,13.05930321,132.93,132.89,3.38]
[1764000600368,0.72,132.92,132.87,3.38]
[1764000600565,12.33930321,132.89,132.87,3.38]
[1764000600871,12.33930321,132.9,132.87,3.38]
[1764000601042,0.72,132.89,132.87,3.38]
[1764000601657,0.72,132.92,132.88,12.33930321]
[1764000601856,13.05930321,132.92,132.87,15.71930321]
[1764000602061,12.33930321,132.88,132.81,9.78882769]
[1764000602239,12.33930321,132.87,132.83,26.09769169]
[1764000602442,12.33930321,132.86,132.84,3.38]
[1764000602970,0.72,132.85,132.84,3.38]
[1764000603142,13.05930321,132.85,132.82,3.38]
[1764000603341,0.72,132.85,132.82,3.38]
[1764000603651,30.6481672,132.93,132.8,3.58]
[1764000603652,13.05930321,132.84,132.8,3.58]
[1764000603850,12.33930321,132.81,132.8,0.2]
[1764000604269,13.05930321,132.81,132.8,0.2]
[1764000604840,0.72,132.81,132.8,0.2]
[1764000605069,12.33930321,132.82,132.8,0.2]
[1764000605249,13.05930321,132.84,132.8,12.53930321]
[1764000605443,0.72,132.84,132.8,12.53930321]
[1764000605645,0.72,132.84,132.8,15.93930321]
[1764000605942,13.05930321,132.84,132.8,3.6]
[1764000606365,0.72,132.83,132.8,3.6]
[1764000607082,12.33930321,132.85,132.81,12.48146478]
[1764000607270,12.33930321,132.88,132.84,12.48146478]
[1764000607468,0.72,132.88,132.85,15.73930321]
[1764000607647,0.72,132.87,132.85,3.4]
[1764000609471,13.05930321,132.89,132.85,15.73930321]
[1764000609778,12.33930321,132.89,132.85,3.4]
[1764000609984,0.72,132.88,132.85,3.4]
[1764000611380,0.72,132.88,132.85,15.73930321]
[1764000611584,0.72,132.88,132.85,3.4]
[1764000611945,3.4,132.93,132.85,0.72]
[1764000612144,0.72,132.92,132.89,12.33930321]
[1764000612377,0.72,132.92,132.89,15.73930321]
[1764000613149,0.72,132.95,132.92,0.14216157]
[1764000613550,0.72,132.95,132.86,9.78882769]
[1764000613750,12.33930321,132.9,132.87,3.4]
[1764000614247,13.05930321,132.9,132.87,3.4]
[1764000614474,12.33930321,132.88,132.81,12.33930321]
[1764000614665,12.33930321,132.86,132.82,3.4]
[1764000614844,12.33930321,132.84,132.8,0.2]
[1764000615046,16.308864,132.92,132.82,12.33930321]
[1764000615047,16.308864,132.9,132.82,12.33930321]
[1764000615270,12.33930321,132.86,132.81,3.4]
[1764000615476,0.72,132.89,132.82,0.14216157]
[1764000615682,12.33930321,132.86,132.81,15.73930321]
[1764000615973,12.33930321,132.86,132.82,0.14216157]
[1764000616146,0.72,132.85,132.82,0.14216157]
[1764000616344,0.72,132.85,132.81,15.73930321]
[1764000616869,12.33930321,132.82,132.8,0.2]
[1764000617059,12.33930321,132.81,132.8,0.2]
[1764000617372,12.33930321,132.83,132.8,0.2]
[1764000617577,13.05930321,132.82,132.8,0.2]
[1764000617765,12.33930321,132.81,132.8,0.2]
[1764000618075,13.05930321,132.81,132.8,0.2]
[1764000618276,0.72,132.81,132.8,0.2]
[1764000618476,0.72,132.84,132.8,0.2]
[1764000618650,12.33930321,132.82,132.8,0.2]
[1764000618852,12.33930321,132.81,132.8,0.2]
[1764000619148,13.05930321,132.84,132.8,12.53930321]
[1764000619370,0.4,132.85,132.8,12.53930321]
[1764000619576,13.05930321,132.83,132.8,0.2]
[1764000619757,0.72,132.83,132.8,0.2]
[1764000620153,0.72,132.83,132.8,12.53930321]
[1764000620455,0.72,132.83,132.8,0.2]
[1764000620650,0.72,132.83,132.8,12.53930321]
[1764000620871,0.72,132.83,132.8,0.2]
[1764000621454,0.72,132.83,132.8,12.53930321]
[1764000621856,0.4,132.85,132.8,12.53930321]
[1764000622080,0.72,132.84,132.8,12.53930321]
[1764000622785,0.72,132.84,132.8,0.2]
[1764000622957,12.33930321,132.81,132.8,0.2]
[1764000623485,0.66,132.81,132.8,0.2]
[1764000623682,12.99930321,132.81,132.75,0.14216157]
[1764000623854,12.33930321,132.8,132.75,12.33930321]
[1764000624057,12.99930321,132.8,132.75,12.33930321]
[1764000624379,0.66,132.8,132.76,12.48146478]
[1764000624594,0.66,132.83,132.78,12.33930321]
[1764000624754,12.33930321,132.83,132.78,12.33930321]
[1764000624959,0.66,132.83,132.79,12.33930321]
[1764000625159,0.66,132.83,132.78,4.08]
[1764000625470,0.66,132.85,132.81,12.33930321]
[1764000625668,12.99930321,132.85,132.8,12.33930321]
[1764000626172,0.66,132.84,132.8,12.33930321]
[1764000626362,0.66,132.84,132.79,0.82216157]
[1764000626559,8.53746482,132.84,132.79,3.54216157]
[1764000626765,0.66,132.84,132.79,11.41962639]
[1764000626987,0.66,132.83,132.79,11.41962639]
[1764000627501,8.53746482,132.83,132.78,7.87746482]
[1764000627658,7.87746482,132.82,132.77,11.41962639]
[1764000627990,7.87746482,132.81,132.77,3.4]
[1764000628164,7.87746482,132.81,132.77,11.27746482]
[1764000628165,0.66,132.81,132.77,11.27746482]
[1764000629165,0.66,132.81,132.78,7.87746482]
[1764000629475,8.53746482,132.83,132.78,7.87746482]
[1764000629684,0.66,132.82,132.78,7.87746482]
[1764000630183,0.66,132.82,132.79,7.87746482]
[1764000630496,0.66,132.86,132.8,7.87746482]
[1764000630783,8.53746482,132.86,132.81,3.4]
[1764000630985,0.66,132.85,132.81,3.4]
[1764000631171,7.87746482,132.83,132.78,0.14216157]
[1764000631368,0.4,132.87,132.82,7.87746482]
[1764000631574,0.66,132.89,132.86,7.87746482]
[1764000633371,0.66,132.89,132.87,7.87746482]
[1764000633583,0.66,132.89,132.86,7.87746482]
[1764000633962,8.53746482,132.91,132.86,7.87746482]
[1764000634185,0.66,132.9,132.87,7.87746482]
[1764000634457,8.53746482,132.9,132.85,11.41962639]
[1764000634688,7.87746482,132.92,132.87,8.01962639]
[1764000634893,0.66,132.95,132.91,7.87746482]
[1764000635371,1.98587209,132.97,132.93,7.87746482]
[1764000635586,0.66,132.95,132.92,8.01962639]
[1764000636264,0.66,132.95,132.91,3.4]
[1764000636467,0.66,132.95,132.91,11.27746482]
[1764000637168,1.98587209,132.97,132.95,9.78882769]
[1764000637366,1.98587209,132.97,132.93,11.27746482]
[1764000637586,2.64587209,132.97,132.93,11.27746482]
[1764000637788,8.53746482,132.96,132.92,3.54216157]
[1764000638092,7.87746482,132.95,132.91,3.4]
[1764000638294,8.53746482,132.95,132.91,3.4]
[1764000638490,7.87746482,132.95,132.91,3.4]
[1764000638696,8.53746482,132.94,132.9,11.27746482]
[1764000638863,8.53746482,132.94,132.9,7.87746482]
[1764000639065,8.53746482,132.93,132.89,3.4]
[1764000639276,8.53746482,132.93,132.89,11.27746482]
[1764000639479,0.66,132.93,132.89,11.27746482]
[1764000639680,1.98587209,132.97,132.89,11.27746482]
[1764000639681,0.66,132.95,132.91,8.01962639]
[1764000640368,7.87746482,132.96,132.91,8.01962639]
[1764000640710,1.98587209,132.97,132.94,7.87746482]
[1764000641195,2.64587209,132.97,132.94,7.87746482]
[1764000641578,2.64587209,132.97,132.93,11.25746482]
[1764000643894,1.98587209,132.97,132.93,11.25746482]
[1764000644099,0.66,132.96,132.91,11.39962639]
[1764000644284,0.66,132.96,132.91,11.25746482]
[1764000644490,8.53746482,132.96,132.91,11.25746482]
[1764000644703,8.53746482,132.96,132.92,7.87746482]
[1764000645003,0.66,132.95,132.91,11.25746482]
[1764000645203,0.66,132.95,132.89,7.87746482]
[1764000645204,7.87746482,132.93,132.89,7.87746482]
[1764000645403,7.87746482,132.92,132.85,7.52690799]
[1764000645605,7.87746482,132.91,132.86,11.25746482]
[1764000645787,7.87746482,132.91,132.87,0.14216157]
[1764000646100,8.53746482,132.91,132.87,8.01962639]
[1764000646301,7.87746482,132.89,132.82,0.68]
[1764000646504,0.66,132.9,132.82,0.68]
[1764000646505,7.87746482,132.87,132.82,7.87746482]
[1764000646706,7.87746482,132.87,132.79,7.53063471]
[1764000646707,7.87746482,132.88,132.79,7.87746482]
[1764000646895,7.87746482,132.83,132.78,7.87746482]
[1764000647400,0.66,132.82,132.78,0.14216157]
[1764000647592,0.66,132.82,132.75,0.68]
[1764000647792,7.87746482,132.8,132.76,11.25746482]
[1764000648108,7.87746482,132.8,132.76,3.38]
[1764000648289,0.66,132.8,132.76,11.25746482]
[1764000648481,8.53746482,132.8,132.76,11.25746482]
[1764000649010,0.66,132.79,132.76,11.25746482]
[1764000649176,8.53746482,132.79,132.75,7.87746482]
[1764000649381,7.87746482,132.76,132.73,0.2]
[1764000649802,8.53746482,132.76,132.73,0.2]
[1764000650002,7.87746482,132.76,132.73,0.2]
[1764000650185,0.66,132.75,132.73,0.2]
[1764000651423,8.53746482,132.75,132.73,0.2]
[1764000651710,0.66,132.75,132.73,0.2]
[1764000652017,0.66,132.78,132.73,0.2]
[1764000652205,7.87746482,132.77,132.73,8.07746482]
[1764000652704,0.67,132.76,132.73,8.07746482]
[1764000653103,7.87746482,132.77,132.73,8.07746482]
[1764000653302,8.54746482,132.79,132.75,7.87746482]
[1764000653691,0.67,132.78,132.75,7.87746482]
[1764000653885,19.688864,132.83,132.75,7.87746482]
[1764000654081,8.54746482,132.79,132.75,7.87746482]
[1764000654488,0.67,132.78,132.75,7.87746482]
[1764000655195,0.67,132.78,132.74,7.87746482]
[1764000657291,0.67,132.84,132.77,17.66629251]
[1764000657496,0.67,132.84,132.8,7.87746482]
[1764000657905,8.54746482,132.84,132.8,7.87746482]
[1764000658296,7.87746482,132.84,132.8,7.87746482]
[1764000658495,0.4,132.86,132.8,7.87746482]
[1764000658719,0.67,132.87,132.84,7.87746482]
[1764000658899,4.07,132.95,132.86,7.87746482]
[1764000659099,7.87746482,132.89,132.85,3.4]
[1764000659408,7.87746482,132.88,132.85,3.4]
[1764000659611,7.87746482,132.89,132.85,3.4]
[1764000659988,0.67,132.88,132.85,3.4]
[1764000660209,8.54746482,132.88,132.82,16.308864]
[1764000660408,7.87746482,132.86,132.81,17.80845408]
[1764000660611,7.87746482,132.85,132.81,9.93098926]
[1764000660825,7.87746482,132.84,132.8,7.87746482]
[1764000661009,7.87746482,132.85,132.81,9.93098926]
[1764000661193,7.87746482,132.84,132.8,13.33098926]
[1764000661390,0.67,132.87,132.81,7.87746482]
[1764000661609,8.54746482,132.86,132.81,7.87746482]
[1764000661825,8.54746482,132.86,132.76,7.87746482]
[1764000661826,7.87746482,132.82,132.76,7.87746482]
[1764000661992,0.67,132.85,132.75,11.27746482]
[1764000662199,7.87746482,132.8,132.76,7.87746482]
[1764000662390,7.87746482,132.81,132.77,7.87746482]
[1764000662922,7.87746482,132.81,132.76,17.66629251]
[1764000663092,0.67,132.8,132.76,17.66629251]
[1764000663506,0.67,132.8,132.77,7.87746482]
[1764000663701,8.54746482,132.8,132.76,9.78882769]
[1764000663899,8.54746482,132.8,132.75,9.78882769]
[1764000663900,8.27746482,132.79,132.75,9.78882769]
[1764000664098,0.4,132.79,132.75,17.66629251]
[1764000664304,0.4,132.79,132.77,7.87746482]
[1764000664517,0.4,132.78,132.73,0.2]
[1764000664823,0.4,132.77,132.73,3.6]
[1764000665036,0.4,132.77,132.76,17.80845408]
[1764000665198,0.4,132.8,132.77,0.14216157]
[1764000665398,0.4,132.8,132.78,7.87746482]
[1764000665731,0.4,132.8,132.77,8.01962639]
[1764000666097,8.94746482,132.8,132.77,0.14216157]
[1764000666722,0.67,132.79,132.77,0.14216157]
[1764000667610,0.4,132.8,132.78,7.87746482]
[1764000667799,0.4,132.8,132.79,8.01962639]
[1764000668004,0.4,132.8,132.79,21.20845408]
[1764000668194,0.4,132.8,132.76,7.53217681]
[1764000668402,1.07,132.8,132.78,0.14216157]
[1764000668597,0.4,132.8,132.78,8.01962639]
[1764000668908,0.4,132.8,132.79,8.01962639]
[1764000669106,0.4,132.8,132.79,8.68962639]
[1764000669421,0.4,132.8,132.79,26.00914163]
[1764000671003,0.4,132.8,132.79,17.80845408]
[1764000671231,1.07,132.8,132.75,9.78882769]
[1764000671435,1.07,132.8,132.76,11.27746482]
[1764000672123,0.4,132.8,132.77,0.14216157]
[1764000672308,0.67,132.79,132.76,3.54216157]
[1764000672507,1.07,132.8,132.76,11.41962639]
[1764000672836,1.07,132.8,132.76,11.27746482]
[1764000673206,0.4,132.84,132.8,9.93098926]
[1764000673406,36.01334469,132.96,132.8,9.93098926]
[1764000673407,7.87746482,132.96,132.84,17.45875546]
[1764000673613,0.67,132.95,132.9,0.14216157]
[1764000673916,0.67,132.95,132.87,16.45102557]
[1764000673917,7.87746482,132.92,132.88,0.14216157]
[1764000674254,0.67,132.95,132.88,34.11731808]
[1764000674415,0.67,132.95,132.91,7.87746482]
[1764000674618,0.67,132.95,132.91,11.27746482]
[1764000675241,8.54746482,132.95,132.91,3.4]
[1764000675417,8.54746482,132.95,132.91,0.14216157]